[Event "Late-Titled-Tuesday-Blitz-February-27-2024"]
[Site "Chess.com"]
[Date "2024.02.27"]
[Round "10"]
[White "TigrVShlyape"]
[Black "Rud_Makarian"]
[Result "1-0"]
[WhiteElo "2920"]
[BlackElo "3065"]
[TimeControl "180+1"]
[EndTime "15:55:42 PST"]
[Termination "TigrVShlyape won on time"]

1. d4 {[%clk 0:03:00.9]} 1... Nf6 {[%clk 0:02:59.8]} 2. Bf4 {[%clk 0:02:56.9]}
2... c5 {[%clk 0:02:59.7]} 3. e3 {[%clk 0:02:55.4]} 3... Qb6 {[%clk 0:02:59.9]}
4. Nc3 {[%clk 0:02:34.3]} 4... d6 {[%clk 0:02:59.6]} 5. Bb5+ {[%clk 0:02:25]}
5... Nbd7 {[%clk 0:02:53.4]} 6. a4 {[%clk 0:02:24]} 6... a6 {[%clk 0:02:52.6]}
7. a5 {[%clk 0:02:23.7]} 7... Qc7 {[%clk 0:02:52.7]} 8. Be2 {[%clk 0:02:16.4]}
8... g6 {[%clk 0:02:53.1]} 9. Nf3 {[%clk 0:02:14.7]} 9... Bg7 {[%clk 0:02:53.8]}
10. O-O {[%clk 0:02:13.7]} 10... O-O {[%clk 0:02:54.5]} 11. h3 {[%clk
0:02:12.3]} 11... b5 {[%clk 0:02:45.1]} 12. axb6 {[%clk 0:02:11.7]} 12... Nxb6
{[%clk 0:02:45]} 13. d5 {[%clk 0:01:50.4]} 13... Bd7 {[%clk 0:02:14]} 14. e4
{[%clk 0:01:48.7]} 14... a5 {[%clk 0:02:12.5]} 15. Re1 {[%clk 0:01:42.1]} 15...
Qb7 {[%clk 0:02:10.7]} 16. Bf1 {[%clk 0:01:31.3]} 16... Rfe8 {[%clk 0:02:08.9]}
17. Qd2 {[%clk 0:01:30.4]} 17... a4 {[%clk 0:02:08.8]} 18. Bh6 {[%clk
0:01:29.5]} 18... Nc8 {[%clk 0:01:44.5]} 19. Bxg7 {[%clk 0:01:28.3]} 19... Kxg7
{[%clk 0:01:44.8]} 20. e5 {[%clk 0:01:26.6]} 20... dxe5 {[%clk 0:01:44]} 21.
Nxe5 {[%clk 0:01:26.2]} 21... Nd6 {[%clk 0:01:41.7]} 22. Ra2 {[%clk 0:01:19.1]}
22... Reb8 {[%clk 0:01:38.2]} 23. g4 {[%clk 0:01:17.3]} 23... h6 {[%clk
0:01:36.3]} 24. Bg2 {[%clk 0:01:16.6]} 24... Re8 {[%clk 0:01:25.2]} 25. Nc6
{[%clk 0:01:03.4]} 25... Bxc6 {[%clk 0:01:06.9]} 26. dxc6 {[%clk 0:01:02.9]}
26... Qb4 {[%clk 0:01:07.6]} 27. Rea1 {[%clk 0:00:54]} 27... a3 {[%clk
0:00:55.2]} 28. bxa3 {[%clk 0:00:50.4]} 28... Qa5 {[%clk 0:00:55.4]} 29. a4
{[%clk 0:00:47.8]} 29... Rad8 {[%clk 0:00:54.1]} 30. Qe1 {[%clk 0:00:47.5]}
30... Qb4 {[%clk 0:00:47.5]} 31. Nb5 {[%clk 0:00:45.5]} 31... Qf4 {[%clk
0:00:42.2]} 32. Qe3 {[%clk 0:00:43]} 32... Qc4 {[%clk 0:00:38.1]} 33. Nc7 {[%clk
0:00:39.8]} 33... Rf8 {[%clk 0:00:37.4]} 34. Qxe7 {[%clk 0:00:39.5]} 34... Nc8
{[%clk 0:00:30.4]} 35. Qe5 {[%clk 0:00:38.5]} 35... Na7 {[%clk 0:00:22.4]} 36.
Rb2 {[%clk 0:00:33.8]} 36... Nc8 {[%clk 0:00:03.9]} 37. a5 {[%clk 0:00:32.4]}
37... Rd2 {[%clk 0:00:02.3]} 38. a6 {[%clk 0:00:28.7]} 38... Nd6 {[%clk
0:00:01.3]} 39. a7 {[%clk 0:00:27.3]} 1-0

[Event "Late-Titled-Tuesday-Blitz-February-27-2024"]
[Site "Chess.com"]
[Date "2024.02.27"]
[Round "10"]
[White "djano"]
[Black "kripri"]
[Result "1-0"]
[WhiteElo "2562"]
[BlackElo "2352"]
[TimeControl "180+1"]
[EndTime "15:55:43 PST"]
[Termination "djano won by resignation"]

1. d4 {[%clk 0:03:00.9]} 1... Nf6 {[%clk 0:02:59.8]} 2. Bg5 {[%clk 0:02:58.1]}
2... h6 {[%clk 0:02:49.8]} 3. Bh4 {[%clk 0:02:54.1]} 3... d5 {[%clk 0:02:41.7]}
4. Nc3 {[%clk 0:02:46.1]} 4... c6 {[%clk 0:02:38.1]} 5. Qd3 {[%clk 0:02:44.6]}
5... Bg4 {[%clk 0:02:32.2]} 6. O-O-O {[%clk 0:02:40.5]} 6... e6 {[%clk
0:02:24.9]} 7. f3 {[%clk 0:02:39.7]} 7... Bh5 {[%clk 0:02:16.7]} 8. Nh3 {[%clk
0:02:37.6]} 8... Be7 {[%clk 0:02:12.6]} 9. Nf4 {[%clk 0:02:34.4]} 9... g5 {[%clk
0:02:08.9]} 10. Nxh5 {[%clk 0:02:33.7]} 10... Nxh5 {[%clk 0:02:08.9]} 11. Bf2
{[%clk 0:02:31.2]} 11... Qa5 {[%clk 0:01:58.8]} 12. Kb1 {[%clk 0:02:20.9]} 12...
Nd7 {[%clk 0:01:48.1]} 13. e4 {[%clk 0:02:14.8]} 13... Nf4 {[%clk 0:01:47.3]}
14. Qe3 {[%clk 0:02:11]} 14... O-O-O {[%clk 0:01:37.2]} 15. g3 {[%clk 0:02:10]}
15... Ng6 {[%clk 0:01:36.9]} 16. e5 {[%clk 0:02:07.3]} 16... Bb4 {[%clk
0:01:30.8]} 17. Be1 {[%clk 0:02:05.2]} 17... Qb6 {[%clk 0:01:14.3]} 18. Na4
{[%clk 0:02:01.4]} 18... Qa5 {[%clk 0:01:14.4]} 19. Nc3 {[%clk 0:02:00.5]} 19...
c5 {[%clk 0:01:05.2]} 20. a3 {[%clk 0:01:58]} 20... Bxc3 {[%clk 0:00:57.3]} 21.
Bxc3 {[%clk 0:01:57.7]} 21... Qb6 {[%clk 0:00:57.6]} 22. dxc5 {[%clk 0:01:54.7]}
22... Qxc5 {[%clk 0:00:45]} 23. Bd4 {[%clk 0:01:54.9]} 23... Qc7 {[%clk
0:00:44.6]} 24. f4 {[%clk 0:01:49.7]} 24... gxf4 {[%clk 0:00:41.2]} 25. gxf4
{[%clk 0:01:50.6]} 25... b6 {[%clk 0:00:37.4]} 26. Rd3 {[%clk 0:01:43.8]} 26...
Kb8 {[%clk 0:00:30]} 27. Rc3 {[%clk 0:01:43.7]} 27... Qb7 {[%clk 0:00:29.8]} 28.
f5 {[%clk 0:01:40.6]} 28... exf5 {[%clk 0:00:26.9]} 29. e6 {[%clk 0:01:41]}
29... fxe6 {[%clk 0:00:20.3]} 30. Bxh8 {[%clk 0:01:37.1]} 30... Nxh8 {[%clk
0:00:19.3]} 31. Qxe6 {[%clk 0:01:35.5]} 31... d4 {[%clk 0:00:18.7]} 32. Qd6+
{[%clk 0:01:26.2]} 32... Ka8 {[%clk 0:00:18.9]} 33. Rg1 {[%clk 0:01:24.7]} 33...
dxc3 {[%clk 0:00:17.2]} 34. Bg2 {[%clk 0:01:25]} 34... Qxg2 {[%clk 0:00:12.9]}
35. Rxg2 {[%clk 0:01:25.9]} 35... Nf7 {[%clk 0:00:12.2]} 36. Qe7 {[%clk
0:01:24.6]} 36... Nde5 {[%clk 0:00:11.8]} 37. Re2 {[%clk 0:01:17.3]} 37... cxb2
{[%clk 0:00:04.8]} 38. Rxe5 {[%clk 0:01:16.2]} 38... Rd1+ {[%clk 0:00:05.2]} 39.
Kxb2 {[%clk 0:01:16.7]} 39... Nxe5 {[%clk 0:00:06.1]} 40. Qxe5 {[%clk
0:01:15.1]} 40... Kb7 {[%clk 0:00:07]} 41. Qg7+ {[%clk 0:01:13.6]} 41... Kc6
{[%clk 0:00:06.8]} 42. Qxh6+ {[%clk 0:01:14.5]} 42... Rd6 {[%clk 0:00:06.7]} 43.
Qf4 {[%clk 0:01:14]} 43... Rd5 {[%clk 0:00:06.9]} 44. h4 {[%clk 0:01:14.1]}
44... Kc5 {[%clk 0:00:07.2]} 45. h5 {[%clk 0:01:14.5]} 45... Rd4 {[%clk
0:00:08.1]} 46. Qxf5+ {[%clk 0:01:13.5]} 46... Kc4 {[%clk 0:00:09]} 47. h6
{[%clk 0:01:11.8]} 47... b5 {[%clk 0:00:09.9]} 48. h7 {[%clk 0:01:11.2]} 48...
Rd8 {[%clk 0:00:10.8]} 49. Qd3+ {[%clk 0:01:08.7]} 49... Rxd3 {[%clk 0:00:09.7]}
50. cxd3+ {[%clk 0:01:09.6]} 50... Kxd3 {[%clk 0:00:10.2]} 51. h8=Q {[%clk
0:01:09.4]} 51... b4 {[%clk 0:00:10.9]} 52. Qd8+ {[%clk 0:01:09.1]} 52... Kc4
{[%clk 0:00:11.8]} 53. Qh4+ {[%clk 0:01:07.7]} 53... Kb5 {[%clk 0:00:11.4]} 54.
Qxb4+ {[%clk 0:01:08.6]} 54... Ka6 {[%clk 0:00:12.3]} 55. Qf8 {[%clk 0:01:07.2]}
55... Ka5 {[%clk 0:00:12.6]} 56. Kb3 {[%clk 0:01:03.4]} 56... Ka6 {[%clk
0:00:13.1]} 57. Kc4 {[%clk 0:01:02.5]} 57... Kb6 {[%clk 0:00:13.4]} 58. Qd6+
{[%clk 0:01:01.6]} 58... Ka5 {[%clk 0:00:13.7]} 59. Qb4+ {[%clk 0:01:00.5]}
59... Ka6 {[%clk 0:00:14]} 1-0

[Event "Late-Titled-Tuesday-Blitz-February-27-2024"]
[Site "Chess.com"]
[Date "2024.02.27"]
[Round "10"]
[White "egnfanclub"]
[Black "shirovin"]
[Result "1-0"]
[WhiteElo "2382"]
[BlackElo "2074"]
[TimeControl "180+1"]
[EndTime "15:55:44 PST"]
[Termination "egnfanclub won on time"]

1. e4 {[%clk 0:02:26.2]} 1... c5 {[%clk 0:02:57]} 2. Nc3 {[%clk 0:02:25.8]} 2...
Nc6 {[%clk 0:02:56]} 3. f4 {[%clk 0:02:25.8]} 3... g6 {[%clk 0:02:55.5]} 4. Nf3
{[%clk 0:02:26.1]} 4... Bg7 {[%clk 0:02:56]} 5. Bc4 {[%clk 0:02:26.5]} 5... e6
{[%clk 0:02:55.7]} 6. f5 {[%clk 0:02:27.2]} 6... Nge7 {[%clk 0:02:55.9]} 7. fxe6
{[%clk 0:02:27.4]} 7... dxe6 {[%clk 0:02:55.7]} 8. d3 {[%clk 0:02:28.3]} 8...
O-O {[%clk 0:02:55]} 9. O-O {[%clk 0:02:28.9]} 9... Nd4 {[%clk 0:02:55.1]} 10.
Be3 {[%clk 0:02:23.8]} 10... Nec6 {[%clk 0:02:55.4]} 11. Qd2 {[%clk 0:02:24.2]}
11... Na5 {[%clk 0:02:45.6]} 12. Bb3 {[%clk 0:02:21.8]} 12... Naxb3 {[%clk
0:02:42.8]} 13. axb3 {[%clk 0:02:22.7]} 13... e5 {[%clk 0:02:42.9]} 14. Bh6
{[%clk 0:02:10]} 14... f6 {[%clk 0:02:40.5]} 15. Bxg7 {[%clk 0:01:45.2]} 15...
Kxg7 {[%clk 0:02:39.5]} 16. Nxd4 {[%clk 0:01:43]} 16... cxd4 {[%clk 0:02:38.7]}
17. Nd5 {[%clk 0:01:43.3]} 17... Be6 {[%clk 0:02:37]} 18. c4 {[%clk 0:01:41]}
18... dxc3 {[%clk 0:02:34.3]} 19. Nxc3 {[%clk 0:01:39]} 19... Bxb3 {[%clk
0:02:31.8]} 20. Rf3 {[%clk 0:01:27.8]} 20... Rf7 {[%clk 0:02:25.1]} 21. Rh3
{[%clk 0:01:27.2]} 21... Qf8 {[%clk 0:01:56.2]} 22. Rf1 {[%clk 0:01:22.2]} 22...
Kg8 {[%clk 0:01:53.9]} 23. Rhf3 {[%clk 0:01:20.1]} 23... Rd8 {[%clk 0:01:48.2]}
24. Qf2 {[%clk 0:01:19.4]} 24... Kg7 {[%clk 0:01:43.9]} 25. Qxa7 {[%clk
0:01:18.5]} 25... Rd4 {[%clk 0:01:35.9]} 26. Qb6 {[%clk 0:01:14.5]} 26... Qb4
{[%clk 0:01:06.3]} 27. Rxf6 {[%clk 0:01:08.8]} 27... Qxb6 {[%clk 0:01:04.7]} 28.
Rxb6 {[%clk 0:01:09.7]} 28... Rxf1+ {[%clk 0:00:56.9]} 29. Kxf1 {[%clk
0:01:09.8]} 29... Bc2 {[%clk 0:00:57.1]} 30. Rxb7+ {[%clk 0:01:09.5]} 30... Kh6
{[%clk 0:00:56.2]} 31. Ke2 {[%clk 0:00:59.9]} 31... Bxd3+ {[%clk 0:00:55.1]} 32.
Ke3 {[%clk 0:01:00.3]} 32... Bc2 {[%clk 0:00:54.2]} 33. Rb5 {[%clk 0:00:52.3]}
33... Rd3+ {[%clk 0:00:52]} 34. Ke2 {[%clk 0:00:52.5]} 34... Rd4 {[%clk
0:00:45.2]} 35. Rxe5 {[%clk 0:00:50.8]} 35... Rb4 {[%clk 0:00:45.7]} 36. Kd2
{[%clk 0:00:40.9]} 36... Ba4 {[%clk 0:00:28.8]} 37. Nxa4 {[%clk 0:00:38.7]}
37... Rxa4 {[%clk 0:00:28.1]} 38. Kc3 {[%clk 0:00:39]} 38... Kg7 {[%clk
0:00:26.2]} 39. b4 {[%clk 0:00:33]} 39... Kf6 {[%clk 0:00:25.1]} 40. Ra5 {[%clk
0:00:31.5]} 40... Ra3+ {[%clk 0:00:23.3]} 41. Rxa3 {[%clk 0:00:31.3]} 1-0

[Event "Late-Titled-Tuesday-Blitz-February-27-2024"]
[Site "Chess.com"]
[Date "2024.02.27"]
[Round "10"]
[White "Vasily85"]
[Black "kai_nov"]
[Result "0-1"]
[WhiteElo "2485"]
[BlackElo "2348"]
[TimeControl "180+1"]
[EndTime "15:55:46 PST"]
[Termination "kai_nov won on time"]

1. Nf3 {[%clk 0:03:00.9]} 1... d5 {[%clk 0:02:57.7]} 2. g3 {[%clk 0:03:00.6]}
2... c5 {[%clk 0:02:54.3]} 3. Bg2 {[%clk 0:03:00.2]} 3... Nc6 {[%clk 0:02:54.2]}
4. d4 {[%clk 0:02:59.9]} 4... cxd4 {[%clk 0:02:33.7]} 5. Nxd4 {[%clk 0:03:00.8]}
5... e6 {[%clk 0:02:34]} 6. O-O {[%clk 0:02:59.5]} 6... Bc5 {[%clk 0:02:27.3]}
7. Nxc6 {[%clk 0:02:47.3]} 7... bxc6 {[%clk 0:02:28.2]} 8. c4 {[%clk 0:02:48.2]}
8... Nf6 {[%clk 0:02:17.5]} 9. Qc2 {[%clk 0:02:26.9]} 9... Be7 {[%clk
0:02:08.4]} 10. Rd1 {[%clk 0:02:24.1]} 10... O-O {[%clk 0:02:02.6]} 11. Nc3
{[%clk 0:02:19.2]} 11... Bb7 {[%clk 0:01:53.2]} 12. e4 {[%clk 0:01:59.4]} 12...
Qc7 {[%clk 0:01:52.1]} 13. Bg5 {[%clk 0:01:46.8]} 13... Rfd8 {[%clk 0:01:20.8]}
14. cxd5 {[%clk 0:01:20.7]} 14... cxd5 {[%clk 0:01:21.7]} 15. exd5 {[%clk
0:01:21.1]} 15... Nxd5 {[%clk 0:01:11.1]} 16. Bxe7 {[%clk 0:01:16.5]} 16... Nxe7
{[%clk 0:01:08.9]} 17. Rac1 {[%clk 0:01:14.6]} 17... Bxg2 {[%clk 0:00:56]} 18.
Kxg2 {[%clk 0:01:15.5]} 18... Qb7+ {[%clk 0:00:45.6]} 19. Kg1 {[%clk 0:01:15.8]}
19... Nf5 {[%clk 0:00:39]} 20. Ne2 {[%clk 0:00:56.1]} 20... h5 {[%clk 0:00:32]}
21. h4 {[%clk 0:00:50.4]} 21... Qf3 {[%clk 0:00:23.9]} 22. Rxd8+ {[%clk
0:00:27.3]} 22... Rxd8 {[%clk 0:00:23.1]} 23. Rd1 {[%clk 0:00:28.2]} 23... Rxd1+
{[%clk 0:00:15.6]} 24. Qxd1 {[%clk 0:00:29.1]} 24... Kh7 {[%clk 0:00:09.3]} 25.
Qd2 {[%clk 0:00:25.3]} 25... g6 {[%clk 0:00:06.9]} 26. b3 {[%clk 0:00:22.7]}
26... Qc6 {[%clk 0:00:05.4]} 27. Nd4 {[%clk 0:00:21.6]} 27... Qd5 {[%clk
0:00:03.5]} 0-1

[Event "Late-Titled-Tuesday-Blitz-February-27-2024"]
[Site "Chess.com"]
[Date "2024.02.27"]
[Round "10"]
[White "manitodeplomo"]
[Black "EsmeraldasAnderson03"]
[Result "1-0"]
[WhiteElo "2659"]
[BlackElo "2519"]
[TimeControl "180+1"]
[EndTime "15:55:50 PST"]
[Termination "manitodeplomo won by resignation"]

1. d4 {[%clk 0:03:00.9]} 1... d5 {[%clk 0:02:59.2]} 2. c4 {[%clk 0:03:00.6]}
2... dxc4 {[%clk 0:03:00.1]} 3. Nf3 {[%clk 0:03:00.8]} 3... Nf6 {[%clk 0:03:01]}
4. e3 {[%clk 0:03:01]} 4... e6 {[%clk 0:03:01.9]} 5. Bxc4 {[%clk 0:03:01.4]}
5... a6 {[%clk 0:03:02.8]} 6. Nc3 {[%clk 0:03:01.8]} 6... c5 {[%clk 0:03:03.7]}
7. O-O {[%clk 0:03:01.1]} 7... Nbd7 {[%clk 0:03:02.7]} 8. Re1 {[%clk 0:02:58.9]}
8... b5 {[%clk 0:03:02.4]} 9. Bb3 {[%clk 0:02:59.3]} 9... c4 {[%clk 0:03:02.3]}
10. Bc2 {[%clk 0:02:58.6]} 10... Bb7 {[%clk 0:03:03]} 11. e4 {[%clk 0:02:58.5]}
11... Be7 {[%clk 0:03:01.1]} 12. d5 {[%clk 0:02:57.6]} 12... Nc5 {[%clk
0:02:57.9]} 13. d6 {[%clk 0:02:56.5]} 13... Bf8 {[%clk 0:02:18.4]} 14. e5 {[%clk
0:02:53.2]} 14... Nd5 {[%clk 0:02:18.1]} 15. Bg5 {[%clk 0:02:40.1]} 15... Qb6
{[%clk 0:02:15.4]} 16. Nxd5 {[%clk 0:02:23.4]} 16... Bxd5 {[%clk 0:02:15.5]} 17.
Qd4 {[%clk 0:02:22.3]} 17... Qc6 {[%clk 0:02:14.8]} 18. Qe3 {[%clk 0:02:17.9]}
18... h6 {[%clk 0:02:13.1]} 19. Bh4 {[%clk 0:02:14.4]} 19... g5 {[%clk
0:02:13.5]} 20. Bg3 {[%clk 0:02:13.3]} 20... Bg7 {[%clk 0:02:13.4]} 21. Nd4
{[%clk 0:01:57.4]} 21... Qc8 {[%clk 0:02:02.2]} 22. Rad1 {[%clk 0:01:52.9]}
22... Bb7 {[%clk 0:01:47.3]} 23. b4 {[%clk 0:01:45.2]} 23... Nd7 {[%clk
0:01:46.4]} 24. f4 {[%clk 0:01:24.7]} 24... gxf4 {[%clk 0:01:33.5]} 25. Bxf4
{[%clk 0:01:19.5]} 25... Rg8 {[%clk 0:01:20]} 26. Qg3 {[%clk 0:00:57]} 26... Kf8
{[%clk 0:00:55.2]} 27. Rf1 {[%clk 0:00:44.7]} 27... Nb6 {[%clk 0:00:55.6]} 28.
Qh4 {[%clk 0:00:40.5]} 28... Bd5 {[%clk 0:00:41.6]} 29. Bxh6 {[%clk 0:00:34.5]}
29... Ra7 {[%clk 0:00:24.2]} 30. Bh7 {[%clk 0:00:24.9]} 30... Bxh6 {[%clk
0:00:17.1]} 31. Qxh6+ {[%clk 0:00:19.2]} 31... Rg7 {[%clk 0:00:17.6]} 32. Rf4
{[%clk 0:00:17.5]} 32... f5 {[%clk 0:00:04.9]} 33. exf6 {[%clk 0:00:17.1]} 33...
Ke8 {[%clk 0:00:04.9]} 34. fxg7 {[%clk 0:00:16.9]} 34... Kd7 {[%clk 0:00:05.3]}
35. g8=Q {[%clk 0:00:16.2]} 35... Qxg8 {[%clk 0:00:05.9]} 36. Bxg8 {[%clk
0:00:17.1]} 36... Kxd6 {[%clk 0:00:06.7]} 37. Qh8 {[%clk 0:00:15.7]} 37... Nd7
{[%clk 0:00:07.1]} 38. Nxe6 {[%clk 0:00:14.8]} 1-0

[Event "Late-Titled-Tuesday-Blitz-February-27-2024"]
[Site "Chess.com"]
[Date "2024.02.27"]
[Round "10"]
[White "cthulhuuu"]
[Black "ozates"]
[Result "0-1"]
[WhiteElo "2456"]
[BlackElo "2624"]
[TimeControl "180+1"]
[EndTime "15:55:50 PST"]
[Termination "ozates won on time"]

1. e4 {[%clk 0:02:59.2]} 1... e5 {[%clk 0:02:55.9]} 2. Nf3 {[%clk 0:02:58.9]}
2... Nc6 {[%clk 0:02:56.4]} 3. Bb5 {[%clk 0:02:58.9]} 3... a6 {[%clk 0:02:54.8]}
4. Bxc6 {[%clk 0:02:58.8]} 4... dxc6 {[%clk 0:02:54.6]} 5. O-O {[%clk
0:02:59.7]} 5... Ne7 {[%clk 0:02:51.9]} 6. Nxe5 {[%clk 0:02:54.9]} 6... Ng6
{[%clk 0:02:51.9]} 7. Nf3 {[%clk 0:02:47.1]} 7... Bg4 {[%clk 0:02:40.8]} 8. d3
{[%clk 0:02:46.4]} 8... Bd6 {[%clk 0:02:35.7]} 9. h3 {[%clk 0:02:35.5]} 9... Bh5
{[%clk 0:02:32.4]} 10. Nbd2 {[%clk 0:02:23.9]} 10... Qf6 {[%clk 0:02:25]} 11.
Nc4 {[%clk 0:02:11.8]} 11... Nh4 {[%clk 0:02:22]} 12. e5 {[%clk 0:01:34.3]}
12... Nxf3+ {[%clk 0:02:19.7]} 13. Qxf3 {[%clk 0:01:30.5]} 13... Qxf3 {[%clk
0:02:12.5]} 14. gxf3 {[%clk 0:01:31.4]} 14... Be7 {[%clk 0:02:08.6]} 15. Kg2
{[%clk 0:01:30.2]} 15... O-O-O {[%clk 0:02:08.6]} 16. Bd2 {[%clk 0:01:17.3]}
16... g5 {[%clk 0:01:56.7]} 17. f4 {[%clk 0:01:08.3]} 17... g4 {[%clk
0:01:55.1]} 18. f5 {[%clk 0:00:31.9]} 18... gxh3+ {[%clk 0:01:53.4]} 19. Kxh3
{[%clk 0:00:32.8]} 19... Rhg8 {[%clk 0:01:53]} 20. Rg1 {[%clk 0:00:32.3]} 20...
Bc5 {[%clk 0:01:48.5]} 21. Be3 {[%clk 0:00:21.7]} 21... Bxe3 {[%clk 0:01:37.3]}
22. Nxe3 {[%clk 0:00:22.6]} 22... h6 {[%clk 0:01:27.9]} 23. Rg3 {[%clk
0:00:22.7]} 23... Rxg3+ {[%clk 0:01:27]} 24. Kxg3 {[%clk 0:00:23.6]} 24... Rd4
{[%clk 0:01:25.1]} 25. Rh1 {[%clk 0:00:18.7]} 25... Be2 {[%clk 0:01:23.6]} 26.
Rxh6 {[%clk 0:00:18.5]} 26... Rd8 {[%clk 0:01:16.7]} 27. e6 {[%clk 0:00:18.1]}
27... fxe6 {[%clk 0:01:16.5]} 28. fxe6 {[%clk 0:00:19]} 28... Re8 {[%clk
0:01:17]} 29. Kf4 {[%clk 0:00:18.6]} 29... Kd8 {[%clk 0:01:08.7]} 30. Ke5 {[%clk
0:00:18.7]} 30... Kc8 {[%clk 0:01:06.3]} 31. Nf5 {[%clk 0:00:18.8]} 31... b6
{[%clk 0:01:04.6]} 32. Rh7 {[%clk 0:00:17]} 32... Bg4 {[%clk 0:01:03.6]} 33. Kf6
{[%clk 0:00:12.2]} 33... Rf8+ {[%clk 0:00:59.1]} 34. Rf7 {[%clk 0:00:11.4]}
34... Re8 {[%clk 0:00:59.2]} 35. Nh6 {[%clk 0:00:08.2]} 35... Bxe6 {[%clk
0:00:55.4]} 36. Re7 {[%clk 0:00:07.2]} 36... Rxe7 {[%clk 0:00:55.6]} 37. Kxe7
{[%clk 0:00:08.1]} 37... Bxa2 {[%clk 0:00:56.1]} 38. f4 {[%clk 0:00:07]} 38...
Bb1 {[%clk 0:00:43.2]} 39. f5 {[%clk 0:00:05.5]} 39... Bxc2 {[%clk 0:00:43.5]}
40. f6 {[%clk 0:00:05.6]} 40... Bb3 {[%clk 0:00:43.2]} 41. Nf5 {[%clk
0:00:04.4]} 41... b5 {[%clk 0:00:36.6]} 42. Nd4 {[%clk 0:00:03.6]} 42... Bg8
{[%clk 0:00:36]} 43. Nxc6 {[%clk 0:00:03.2]} 43... Kb7 {[%clk 0:00:35.3]} 44.
Ne5 {[%clk 0:00:01.1]} 44... c5 {[%clk 0:00:33.2]} 0-1

[Event "Late-Titled-Tuesday-Blitz-February-27-2024"]
[Site "Chess.com"]
[Date "2024.02.27"]
[Round "10"]
[White "Godzillator"]
[Black "karinachess1"]
[Result "0-1"]
[WhiteElo "2354"]
[BlackElo "2591"]
[TimeControl "180+1"]
[EndTime "15:55:50 PST"]
[Termination "karinachess1 won by resignation"]

1. Nf3 {[%clk 0:03:00.9]} 1... Nf6 {[%clk 0:03:00]} 2. e3 {[%clk 0:02:58.3]}
2... g6 {[%clk 0:03:00.4]} 3. b3 {[%clk 0:02:58]} 3... Bg7 {[%clk 0:03:00.9]} 4.
Bb2 {[%clk 0:02:58.5]} 4... O-O {[%clk 0:03:01.6]} 5. Be2 {[%clk 0:02:58.9]}
5... c5 {[%clk 0:03:01.9]} 6. O-O {[%clk 0:02:58.9]} 6... Nc6 {[%clk 0:03:02.3]}
7. d3 {[%clk 0:02:53]} 7... d5 {[%clk 0:03:01.3]} 8. Ne5 {[%clk 0:02:49.5]} 8...
Qc7 {[%clk 0:02:57.9]} 9. Nxc6 {[%clk 0:02:49.1]} 9... Qxc6 {[%clk 0:02:54.1]}
10. f4 {[%clk 0:02:49.3]} 10... b6 {[%clk 0:02:51.9]} 11. Nd2 {[%clk 0:02:48.6]}
11... Bb7 {[%clk 0:02:52.2]} 12. Nf3 {[%clk 0:02:48.6]} 12... Rad8 {[%clk
0:02:50.1]} 13. Ne5 {[%clk 0:02:48.4]} 13... Qc7 {[%clk 0:02:50.7]} 14. a4
{[%clk 0:02:42.8]} 14... Rfe8 {[%clk 0:02:46.6]} 15. Qc1 {[%clk 0:02:42.7]}
15... a6 {[%clk 0:02:29.9]} 16. Bf3 {[%clk 0:02:40.7]} 16... b5 {[%clk
0:02:22.8]} 17. axb5 {[%clk 0:02:40.1]} 17... axb5 {[%clk 0:02:23.7]} 18. Ra7
{[%clk 0:02:35]} 18... Ra8 {[%clk 0:02:14.7]} 19. Rxa8 {[%clk 0:02:30.1]} 19...
Rxa8 {[%clk 0:02:10.9]} 20. g3 {[%clk 0:02:23.1]} 20... Rd8 {[%clk 0:01:47.8]}
21. Qa1 {[%clk 0:02:21.3]} 21... Qb6 {[%clk 0:01:42.4]} 22. Kg2 {[%clk
0:02:13.2]} 22... d4 {[%clk 0:01:35.3]} 23. Bxb7 {[%clk 0:02:12.6]} 23... Qxb7+
{[%clk 0:01:31.4]} 24. e4 {[%clk 0:02:12.9]} 24... Nxe4 {[%clk 0:01:12.3]} 25.
dxe4 {[%clk 0:02:09.9]} 25... Bxe5 {[%clk 0:01:12.6]} 26. fxe5 {[%clk 0:02:09]}
26... Qxe4+ {[%clk 0:01:13.3]} 27. Kg1 {[%clk 0:02:07.9]} 27... Qxc2 {[%clk
0:01:11.1]} 28. e6 {[%clk 0:01:52.8]} 28... fxe6 {[%clk 0:00:49.4]} 29. b4
{[%clk 0:01:44.4]} 29... e5 {[%clk 0:00:38]} 30. bxc5 {[%clk 0:01:43.4]} 30...
Qxc5 {[%clk 0:00:35.8]} 31. Qa6 {[%clk 0:01:33.8]} 31... d3+ {[%clk 0:00:31.3]}
32. Kg2 {[%clk 0:01:33.9]} 32... Qd5+ {[%clk 0:00:31.6]} 33. Kh3 {[%clk
0:01:32.5]} 33... d2 {[%clk 0:00:30.7]} 34. Rd1 {[%clk 0:01:25.7]} 34... Qb3
{[%clk 0:00:30.7]} 35. Bxe5 {[%clk 0:01:15.6]} 35... Qxd1 {[%clk 0:00:14.4]} 36.
Qe6+ {[%clk 0:01:15.5]} 36... Kf8 {[%clk 0:00:15.2]} 37. Bg7+ {[%clk 0:01:15]}
37... Ke8 {[%clk 0:00:12]} 38. Qg8+ {[%clk 0:01:04.5]} 38... Kd7 {[%clk
0:00:12.5]} 39. Qd5+ {[%clk 0:01:04.5]} 39... Kc7 {[%clk 0:00:09.8]} 40. Be5+
{[%clk 0:01:03.6]} 40... Rd6 {[%clk 0:00:10.2]} 41. Qc5+ {[%clk 0:00:53.1]}
41... Kd7 {[%clk 0:00:10.6]} 42. Qxb5+ {[%clk 0:00:52.6]} 42... Ke6 {[%clk
0:00:11]} 43. Bxd6 {[%clk 0:00:27.3]} 43... Qh5+ {[%clk 0:00:11.2]} 44. Kg2
{[%clk 0:00:26.9]} 44... Qxb5 {[%clk 0:00:10.4]} 0-1